[Event "Titled Tuesday Blitz September 27 Early 2022"]
[White "Fawzy, Adham"]
[Black "Rottenwohrer Suarez, Juan"]
[WhiteFideId "10613129"]
[BlackFideId "32068182"]
[WhiteElo "2541"]
[BlackElo "2132"]
[Result "0-1"]
[Round "08"]
[TimeControl "180+1"]
[Date "2022.09.27"]
[WhiteClock "0:00:01"]
[BlackClock "0:00:04"]

1. e4 {[%clk 0:03:00]}  c5 {[%clk 0:02:59]} 2. Nf3 {[%clk 0:03:01]}  g6 {[%clk 0:03:00]} 3. c3 {[%clk 0:02:59]}  d5 {[%clk 0:02:59]} 4. exd5 {[%clk 0:02:55]}  Qxd5 {[%clk 0:03:00]} 5. d4 {[%clk 0:02:55]}  Bg7 {[%clk 0:03:01]} 6. Be3 {[%clk 0:02:47]}  cxd4 {[%clk 0:02:59]} 7. Bxd4 {[%clk 0:02:47]}  Nf6 {[%clk 0:02:59]} 8. Be2 {[%clk 0:02:42]}  Nc6 {[%clk 0:02:58]} 9. Be3 {[%clk 0:02:39]}  Qxd1+ {[%clk 0:02:24]} 10. Bxd1 {[%clk 0:02:40]}  O-O {[%clk 0:02:24]} 11. O-O {[%clk 0:02:41]}  Bf5 {[%clk 0:02:21]} 12. h3 {[%clk 0:02:36]}  h5 {[%clk 0:02:18]} 13. Nbd2 {[%clk 0:02:36]}  b5 {[%clk 0:02:14]} 14. Be2 {[%clk 0:02:24]}  Rab8 {[%clk 0:02:08]} 15. b3 {[%clk 0:02:14]}  Nd5 {[%clk 0:02:05]} 16. Bd4 {[%clk 0:02:01]}  Nxc3 {[%clk 0:02:01]} 17. Bxc3 {[%clk 0:01:57]}  Bxc3 {[%clk 0:02:00]} 18. Rac1 {[%clk 0:01:58]}  Nd4 {[%clk 0:01:49]} 19. Nxd4 {[%clk 0:01:40]}  Bxd4 {[%clk 0:01:50]} 20. Rc7 {[%clk 0:01:36]}  e5 {[%clk 0:01:19]} 21. Nf3 {[%clk 0:01:24]}  b4 {[%clk 0:00:48]} 22. Nxd4 {[%clk 0:01:04]}  exd4 {[%clk 0:00:48]} 23. Rd1 {[%clk 0:01:05]}  Rbd8 {[%clk 0:00:18]} 24. Bd3 {[%clk 0:01:01]}  Bxd3 {[%clk 0:00:09]} 25. Rxd3 {[%clk 0:01:02]}  a5 {[%clk 0:00:04]} 26. Rc4 {[%clk 0:00:59]}  Rfe8 {[%clk 0:00:05]} 27. Kf1 {[%clk 0:00:55]}  Re4 {[%clk 0:00:04]} 28. f3 {[%clk 0:00:43]}  Re3 {[%clk 0:00:02]} 29. Rdxd4 {[%clk 0:00:41]}  Rde8 {[%clk 0:00:02]} 30. Re4 {[%clk 0:00:36]}  R8xe4 {[%clk 0:00:01]} 31. fxe4 {[%clk 0:00:28]}  Rd3 {[%clk 0:00:01]} 32. Ke2 {[%clk 0:00:24]}  Rd7 {[%clk 0:00:02]} 33. Rc5 {[%clk 0:00:23]}  Ra7 {[%clk 0:00:02]} 34. Rb5 {[%clk 0:00:20]}  Kg7 {[%clk 0:00:03]} 35. e5 {[%clk 0:00:20]}  Kf8 {[%clk 0:00:03]} 36. Kd3 {[%clk 0:00:20]}  Ke7 {[%clk 0:00:03]} 37. Kc4 {[%clk 0:00:20]}  Ke6 {[%clk 0:00:04]} 38. Kd4 {[%clk 0:00:16]}  Rd7+ {[%clk 0:00:04]} 39. Ke4 {[%clk 0:00:16]}  Rd2 {[%clk 0:00:03]} 40. Rxa5 {[%clk 0:00:15]}  Rxg2 {[%clk 0:00:03]} 41. Ra6+ {[%clk 0:00:15]}  Ke7 {[%clk 0:00:03]} 42. Kd4 {[%clk 0:00:12]}  Rd2+ {[%clk 0:00:03]} 43. Kc4 {[%clk 0:00:12]}  Re2 {[%clk 0:00:02]} 44. Kxb4 {[%clk 0:00:11]}  g5 {[%clk 0:00:03]} 45. Rc6 {[%clk 0:00:09]}  g4 {[%clk 0:00:03]} 46. hxg4 {[%clk 0:00:09]}  hxg4 {[%clk 0:00:04]} 47. Rc4 {[%clk 0:00:09]}  g3 {[%clk 0:00:01]} 48. Rg4 {[%clk 0:00:08]}  g2 {[%clk 0:00:02]} 49. a4 {[%clk 0:00:08]}  Re4+ {[%clk 0:00:02]} 50. Rxe4 {[%clk 0:00:06]}  g1=Q {[%clk 0:00:02]} 51. Rc4 {[%clk 0:00:05]}  Qb6+ {[%clk 0:00:02]} 52. Kc3 {[%clk 0:00:04]}  Ke6 {[%clk 0:00:03]} 53. b4 {[%clk 0:00:03]}  Qe3+ {[%clk 0:00:03]} 54. Kb2 {[%clk 0:00:03]}  Kxe5 {[%clk 0:00:03]} 55. Rc2 {[%clk 0:00:03]}  Qd4+ {[%clk 0:00:03]} 56. Kb3 {[%clk 0:00:03]}  f5 {[%clk 0:00:03]} 57. b5 {[%clk 0:00:03]}  Qd3+ {[%clk 0:00:03]} 58. Kb2 {[%clk 0:00:03]}  f4 {[%clk 0:00:03]} 59. b6 {[%clk 0:00:03]}  Qd4+ {[%clk 0:00:02]} 60. Ka2 {[%clk 0:00:03]}  Qxb6 {[%clk 0:00:03]} 61. a5 {[%clk 0:00:03]}  Qxa5+ {[%clk 0:00:03]} 62. Kb2 {[%clk 0:00:04]}  Qb4+ {[%clk 0:00:03]} 63. Ka2 {[%clk 0:00:03]}  f3 {[%clk 0:00:04]} 64. Rg2 {[%clk 0:00:01]}  Qa4+ {[%clk 0:00:03]} 65. Kb2 {[%clk 0:00:01]}  fxg2 {[%clk 0:00:04]} 0-1


[Site "https://www.chess.com"]

[Event "Titled Tuesday Blitz September 27 Early 2022"]
[White "Gabdrakhmanov, Azat"]
[Black "Derjabin, Ilja"]
[WhiteFideId "34189197"]
[BlackFideId "14104768"]
[WhiteElo "2233"]
[BlackElo "2341"]
[Result "1-0"]
[Round "08"]
[TimeControl "180+1"]
[Date "2022.09.27"]
[WhiteClock "0:00:19"]
[BlackClock "0:00:08"]

1. e4 {[%clk 0:03:00]}  c5 {[%clk 0:02:59]} 2. Nf3 {[%clk 0:02:57]}  d6 {[%clk 0:02:58]} 3. d4 {[%clk 0:02:57]}  cxd4 {[%clk 0:02:58]} 4. Nxd4 {[%clk 0:02:58]}  Nf6 {[%clk 0:02:58]} 5. Nc3 {[%clk 0:02:57]}  a6 {[%clk 0:02:59]} 6. Be3 {[%clk 0:02:57]}  e5 {[%clk 0:02:59]} 7. Nb3 {[%clk 0:02:56]}  Be7 {[%clk 0:02:59]} 8. f3 {[%clk 0:02:56]}  Be6 {[%clk 0:02:58]} 9. Qd2 {[%clk 0:02:56]}  O-O {[%clk 0:02:58]} 10. O-O-O {[%clk 0:02:55]}  b5 {[%clk 0:02:57]} 11. g4 {[%clk 0:02:55]}  b4 {[%clk 0:02:57]} 12. Ne2 {[%clk 0:02:55]}  a5 {[%clk 0:02:57]} 13. g5 {[%clk 0:02:52]}  Nh5 {[%clk 0:02:49]} 14. Kb1 {[%clk 0:02:49]}  Nc6 {[%clk 0:02:47]} 15. Ng3 {[%clk 0:02:36]}  a4 {[%clk 0:02:46]} 16. Nc1 {[%clk 0:02:28]}  Nf4 {[%clk 0:02:44]} 17. h4 {[%clk 0:02:22]}  b3 {[%clk 0:02:35]} 18. cxb3 {[%clk 0:02:16]}  axb3 {[%clk 0:02:35]} 19. a3 {[%clk 0:02:17]}  Qb8 {[%clk 0:02:14]} 20. Nf5 {[%clk 0:02:11]}  Bxf5 {[%clk 0:01:52]} 21. exf5 {[%clk 0:02:12]}  Rc8 {[%clk 0:01:47]} 22. Rh2 {[%clk 0:01:30]}  Bf8 {[%clk 0:01:13]} 23. h5 {[%clk 0:01:17]}  Qb7 {[%clk 0:00:43]} 24. g6 {[%clk 0:01:11]}  h6 {[%clk 0:00:21]} 25. Bxf4 {[%clk 0:01:02]}  exf4 {[%clk 0:00:22]} 26. Qd5 {[%clk 0:01:02]}  Ra7 {[%clk 0:00:20]} 27. Qxf7+ {[%clk 0:00:57]}  Qxf7 {[%clk 0:00:18]} 28. gxf7+ {[%clk 0:00:58]}  Kh8 {[%clk 0:00:18]} 29. Bc4 {[%clk 0:00:55]}  Ne5 {[%clk 0:00:18]} 30. Be6 {[%clk 0:00:52]}  Rc2 {[%clk 0:00:16]} 31. Rxc2 {[%clk 0:00:46]}  bxc2+ {[%clk 0:00:17]} 32. Kxc2 {[%clk 0:00:47]}  Nxf3 {[%clk 0:00:18]} 33. Nd3 {[%clk 0:00:34]}  Rc7+ {[%clk 0:00:17]} 34. Kb1 {[%clk 0:00:33]}  Ng5 {[%clk 0:00:10]} 35. Nxf4 {[%clk 0:00:31]}  Nxf7 {[%clk 0:00:10]} 36. Ng6+ {[%clk 0:00:28]}  Kg8 {[%clk 0:00:11]} 37. a4 {[%clk 0:00:22]}  Ra7 {[%clk 0:00:10]} 38. Rd4 {[%clk 0:00:18]}  Be7 {[%clk 0:00:09]} 39. Nxe7+ {[%clk 0:00:16]}  Rxe7 {[%clk 0:00:08]} 40. Rxd6 {[%clk 0:00:16]}  Kh7 {[%clk 0:00:08]} 41. Bxf7 {[%clk 0:00:16]}  Rxf7 {[%clk 0:00:09]} 42. Rd5 {[%clk 0:00:17]}  Ra7 {[%clk 0:00:07]} 43. a5 {[%clk 0:00:17]}  Kg8 {[%clk 0:00:08]} 44. b4 {[%clk 0:00:17]}  Kf7 {[%clk 0:00:08]} 45. Rd6 {[%clk 0:00:18]}  Ke7 {[%clk 0:00:07]} 46. Rg6 {[%clk 0:00:18]}  Kf7 {[%clk 0:00:07]} 47. a6 {[%clk 0:00:19]}  Kf8 {[%clk 0:00:06]} 48. b5 {[%clk 0:00:19]}  Rf7 {[%clk 0:00:07]} 49. Rb6 {[%clk 0:00:17]}  Rxf5 {[%clk 0:00:07]} 50. a7 {[%clk 0:00:18]}  Rf1+ {[%clk 0:00:06]} 51. Kb2 {[%clk 0:00:18]}  Rf2+ {[%clk 0:00:07]} 52. Kb3 {[%clk 0:00:19]}  Rf1 {[%clk 0:00:08]} 53. a8=Q+ {[%clk 0:00:19]} 1-0


[Site "https://www.chess.com"]

[Event "Titled Tuesday Blitz September 27 Early 2022"]
[White "Hambleton, Aman"]
[Black "Aliakbarov, Anar"]
[WhiteFideId "2606577"]
[BlackFideId "13401858"]
[WhiteElo "2538"]
[BlackElo "2210"]
[Result "0-1"]
[Round "08"]
[TimeControl "180+1"]
[Date "2022.09.27"]
[WhiteClock "0:00:02"]
[BlackClock "0:00:57"]

1. e4 {[%clk 0:03:00]}  e5 {[%clk 0:02:59]} 2. Nf3 {[%clk 0:02:59]}  Nc6 {[%clk 0:02:57]} 3. Bc4 {[%clk 0:02:57]}  Bc5 {[%clk 0:02:57]} 4. Bxf7+ {[%clk 0:02:56]}  Kxf7 {[%clk 0:02:50]} 5. Nxe5+ {[%clk 0:02:56]}  Nxe5 {[%clk 0:02:49]} 6. Qh5+ {[%clk 0:02:56]}  Kf8 {[%clk 0:02:41]} 7. Qxe5 {[%clk 0:02:53]}  Qe7 {[%clk 0:02:40]} 8. Qf4+ {[%clk 0:02:50]}  Nf6 {[%clk 0:02:33]} 9. Nc3 {[%clk 0:02:45]}  d6 {[%clk 0:02:31]} 10. d3 {[%clk 0:02:40]}  Kg8 {[%clk 0:02:23]} 11. Be3 {[%clk 0:01:43]}  Bxe3 {[%clk 0:02:21]} 12. Qxe3 {[%clk 0:01:43]}  c5 {[%clk 0:02:20]} 13. O-O-O {[%clk 0:01:39]}  h6 {[%clk 0:02:17]} 14. f4 {[%clk 0:01:35]}  Kh7 {[%clk 0:02:17]} 15. h3 {[%clk 0:01:34]}  Re8 {[%clk 0:02:16]} 16. Qf3 {[%clk 0:01:25]}  d5 {[%clk 0:02:14]} 17. e5 {[%clk 0:01:21]}  Ng8 {[%clk 0:02:05]} 18. Nxd5 {[%clk 0:01:21]}  Qf7 {[%clk 0:02:05]} 19. Nc3 {[%clk 0:00:57]}  Rb8 {[%clk 0:02:03]} 20. Kb1 {[%clk 0:00:26]}  b5 {[%clk 0:01:59]} 21. Rhf1 {[%clk 0:00:18]}  b4 {[%clk 0:01:58]} 22. Ne4 {[%clk 0:00:18]}  Bb7 {[%clk 0:01:58]} 23. Qe3 {[%clk 0:00:14]}  Bxe4 {[%clk 0:01:55]} 24. dxe4 {[%clk 0:00:12]}  Rbd8 {[%clk 0:01:50]} 25. Rxd8 {[%clk 0:00:10]}  Rxd8 {[%clk 0:01:51]} 26. f5 {[%clk 0:00:06]}  Rd4 {[%clk 0:01:47]} 27. e6 {[%clk 0:00:03]}  Qb7 {[%clk 0:01:47]} 28. Re1 {[%clk 0:00:03]}  Nf6 {[%clk 0:01:46]} 29. e5 {[%clk 0:00:02]}  Re4 {[%clk 0:01:41]} 30. Qf2 {[%clk 0:00:02]}  Ne8 {[%clk 0:01:17]} 31. g4 {[%clk 0:00:03]}  Qd5 {[%clk 0:01:14]} 32. b3 {[%clk 0:00:02]}  Qxe5 {[%clk 0:01:13]} 33. Rxe4 {[%clk 0:00:02]}  Qxe4 {[%clk 0:01:14]} 34. Qxc5 {[%clk 0:00:02]}  Nf6 {[%clk 0:01:12]} 35. a3 {[%clk 0:00:02]}  bxa3 {[%clk 0:01:06]} 36. Qxa3 {[%clk 0:00:02]}  Qh1+ {[%clk 0:01:06]} 37. Kb2 {[%clk 0:00:02]}  Qxh3 {[%clk 0:01:07]} 38. Qxa7 {[%clk 0:00:02]}  Qxg4 {[%clk 0:01:06]} 39. Qc5 {[%clk 0:00:03]}  Qe4 {[%clk 0:01:03]} 40. b4 {[%clk 0:00:03]}  h5 {[%clk 0:01:02]} 41. b5 {[%clk 0:00:03]}  h4 {[%clk 0:01:03]} 42. Qc6 {[%clk 0:00:01]}  Qxc6 {[%clk 0:00:57]} 43. bxc6 {[%clk 0:00:02]}  Ne8 {[%clk 0:00:58]} 44. Kc3 {[%clk 0:00:01]}  h3 {[%clk 0:00:59]} 45. f6 {[%clk 0:00:02]}  gxf6 {[%clk 0:00:57]} 46. c7 {[%clk 0:00:02]}  Nxc7 {[%clk 0:00:57]} 0-1


[Site "https://www.chess.com"]

[Event "Titled Tuesday Blitz September 27 Early 2022"]
[White "Hansen, Eric"]
[Black "Svane, Rasmus"]
[WhiteFideId "2606771"]
[BlackFideId "4657101"]
[WhiteElo "2568"]
[BlackElo "2674"]
[Result "0-1"]
[Round "08"]
[TimeControl "180+1"]
[Date "2022.09.27"]
[WhiteClock "0:00:02"]
[BlackClock "0:00:04"]

1. e4 {[%clk 0:03:00]}  c6 {[%clk 0:02:53]} 2. Nf3 {[%clk 0:02:59]}  d5 {[%clk 0:02:54]} 3. d3 {[%clk 0:03:00]}  dxe4 {[%clk 0:02:52]} 4. dxe4 {[%clk 0:03:00]}  Qxd1+ {[%clk 0:02:53]} 5. Kxd1 {[%clk 0:03:01]}  Nf6 {[%clk 0:02:54]} 6. Nfd2 {[%clk 0:02:57]}  g5 {[%clk 0:02:53]} 7. f3 {[%clk 0:02:54]}  h5 {[%clk 0:02:53]} 8. Nc4 {[%clk 0:02:53]}  g4 {[%clk 0:02:48]} 9. Nc3 {[%clk 0:02:48]}  Be6 {[%clk 0:02:46]} 10. a4 {[%clk 0:02:42]}  Nbd7 {[%clk 0:02:45]} 11. Be3 {[%clk 0:02:36]}  Bh6 {[%clk 0:02:42]} 12. Bxh6 {[%clk 0:02:16]}  Rxh6 {[%clk 0:02:43]} 13. Kd2 {[%clk 0:02:04]}  Bxc4 {[%clk 0:02:16]} 14. Bxc4 {[%clk 0:02:02]}  Ne5 {[%clk 0:02:17]} 15. Be2 {[%clk 0:02:02]}  gxf3 {[%clk 0:02:17]} 16. gxf3 {[%clk 0:02:02]}  Ng6 {[%clk 0:02:18]} 17. Ke3 {[%clk 0:02:00]}  e5 {[%clk 0:02:15]} 18. h4 {[%clk 0:01:54]}  Nd7 {[%clk 0:02:00]} 19. Bc4 {[%clk 0:01:43]}  Ke7 {[%clk 0:01:57]} 20. Rad1 {[%clk 0:01:38]}  Nf4 {[%clk 0:01:54]} 21. Rhg1 {[%clk 0:01:35]}  Rg6 {[%clk 0:01:44]} 22. Ne2 {[%clk 0:01:20]}  Nxe2 {[%clk 0:01:14]} 23. Rxg6 {[%clk 0:01:17]}  fxg6 {[%clk 0:01:12]} 24. Kxe2 {[%clk 0:01:10]}  Rf8 {[%clk 0:01:11]} 25. Rg1 {[%clk 0:01:07]}  Rf6 {[%clk 0:01:07]} 26. Ke3 {[%clk 0:01:06]}  Nf8 {[%clk 0:01:03]} 27. Kf2 {[%clk 0:00:48]}  Rf4 {[%clk 0:00:59]} 28. Kg3 {[%clk 0:00:48]}  Nh7 {[%clk 0:00:50]} 29. Be2 {[%clk 0:00:39]}  g5 {[%clk 0:00:49]} 30. hxg5 {[%clk 0:00:39]}  Nxg5 {[%clk 0:00:50]} 31. Rh1 {[%clk 0:00:38]}  h4+ {[%clk 0:00:35]} 32. Rxh4 {[%clk 0:00:38]}  Rxh4 {[%clk 0:00:36]} 33. Kxh4 {[%clk 0:00:39]}  Ne6 {[%clk 0:00:34]} 34. Kg3 {[%clk 0:00:38]}  Kf6 {[%clk 0:00:33]} 35. Bc4 {[%clk 0:00:36]}  Nf4 {[%clk 0:00:31]} 36. a5 {[%clk 0:00:36]}  b6 {[%clk 0:00:31]} 37. b4 {[%clk 0:00:35]}  c5 {[%clk 0:00:29]} 38. axb6 {[%clk 0:00:25]}  axb6 {[%clk 0:00:29]} 39. bxc5 {[%clk 0:00:25]}  bxc5 {[%clk 0:00:29]} 40. Kf2 {[%clk 0:00:21]}  Ke7 {[%clk 0:00:28]} 41. Ke3 {[%clk 0:00:20]}  Kd6 {[%clk 0:00:29]} 42. Kf2 {[%clk 0:00:18]}  Ke7 {[%clk 0:00:23]} 43. Kg3 {[%clk 0:00:18]}  Kf6 {[%clk 0:00:22]} 44. Kg4 {[%clk 0:00:19]}  Ng2 {[%clk 0:00:22]} 45. Kg3 {[%clk 0:00:08]}  Ne3 {[%clk 0:00:12]} 46. Bb3 {[%clk 0:00:08]}  Kg5 {[%clk 0:00:13]} 47. c3 {[%clk 0:00:05]}  Nf1+ {[%clk 0:00:10]} 48. Kf2 {[%clk 0:00:05]}  Nd2 {[%clk 0:00:10]} 49. Bd1 {[%clk 0:00:02]}  Kf4 {[%clk 0:00:10]} 50. Kg2 {[%clk 0:00:01]}  Ke3 {[%clk 0:00:09]} 51. Kg3 {[%clk 0:00:01]}  Nb1 {[%clk 0:00:06]} 52. c4 {[%clk 0:00:01]}  Nd2 {[%clk 0:00:06]} 53. Kg4 {[%clk 0:00:01]}  Nxc4 {[%clk 0:00:06]} 54. Kf5 {[%clk 0:00:01]}  Kd4 {[%clk 0:00:06]} 55. Ke6 {[%clk 0:00:01]}  Ne3 {[%clk 0:00:06]} 56. Be2 {[%clk 0:00:01]}  c4 {[%clk 0:00:03]} 57. f4 {[%clk 0:00:01]}  exf4 {[%clk 0:00:04]} 58. e5 {[%clk 0:00:02]}  c3 {[%clk 0:00:04]} 0-1


[Site "https://www.chess.com"]

[Event "Titled Tuesday Blitz September 27 Early 2022"]
[White "Howell, David W L"]
[Black "Gabrielian, Artur"]
[WhiteFideId "410608"]
[BlackFideId "4131002"]
[WhiteElo "2559"]
[BlackElo "2467"]
[Result "1-0"]
[Round "08"]
[TimeControl "180+1"]
[Date "2022.09.27"]
[WhiteClock "0:00:11"]
[BlackClock "0:00:03"]

1. Nc3 {[%clk 0:02:51]}  d5 {[%clk 0:02:56]} 2. d4 {[%clk 0:02:51]}  Nf6 {[%clk 0:02:55]} 3. Bf4 {[%clk 0:02:50]}  e6 {[%clk 0:02:55]} 4. Nb5 {[%clk 0:02:50]}  Na6 {[%clk 0:02:54]} 5. e3 {[%clk 0:02:50]}  Be7 {[%clk 0:02:54]} 6. Nf3 {[%clk 0:02:47]}  O-O {[%clk 0:02:54]} 7. a4 {[%clk 0:02:42]}  c6 {[%clk 0:02:51]} 8. Na3 {[%clk 0:02:41]}  c5 {[%clk 0:02:51]} 9. Nb5 {[%clk 0:02:35]}  Bd7 {[%clk 0:02:39]} 10. c3 {[%clk 0:02:31]}  Nh5 {[%clk 0:02:24]} 11. Be5 {[%clk 0:02:29]}  f6 {[%clk 0:02:19]} 12. Bg3 {[%clk 0:02:29]}  Nxg3 {[%clk 0:02:17]} 13. hxg3 {[%clk 0:02:29]}  Nc7 {[%clk 0:02:11]} 14. Bd3 {[%clk 0:02:12]}  f5 {[%clk 0:01:57]} 15. Nxc7 {[%clk 0:01:50]}  Qxc7 {[%clk 0:01:56]} 16. Ne5 {[%clk 0:01:51]}  Be8 {[%clk 0:01:55]} 17. g4 {[%clk 0:01:44]}  g6 {[%clk 0:01:47]} 18. gxf5 {[%clk 0:01:42]}  exf5 {[%clk 0:01:47]} 19. Qf3 {[%clk 0:01:42]}  Rd8 {[%clk 0:01:37]} 20. Qh3 {[%clk 0:01:31]}  Bf6 {[%clk 0:01:28]} 21. f4 {[%clk 0:01:31]}  cxd4 {[%clk 0:01:14]} 22. exd4 {[%clk 0:01:29]}  h5 {[%clk 0:01:09]} 23. Qg3 {[%clk 0:01:22]}  Qg7 {[%clk 0:01:00]} 24. a5 {[%clk 0:01:17]}  Rd6 {[%clk 0:00:58]} 25. Kd2 {[%clk 0:01:10]}  a6 {[%clk 0:00:49]} 26. Rhe1 {[%clk 0:01:10]}  Bd8 {[%clk 0:00:45]} 27. Nf3 {[%clk 0:01:00]}  Bb5 {[%clk 0:00:31]} 28. Bxb5 {[%clk 0:00:45]}  axb5 {[%clk 0:00:32]} 29. Ne5 {[%clk 0:00:45]}  Ra6 {[%clk 0:00:21]} 30. b4 {[%clk 0:00:40]}  Kh7 {[%clk 0:00:20]} 31. Qd3 {[%clk 0:00:35]}  Qh6 {[%clk 0:00:19]} 32. g3 {[%clk 0:00:33]}  h4 {[%clk 0:00:12]} 33. Kc2 {[%clk 0:00:32]}  Bf6 {[%clk 0:00:06]} 34. Qxb5 {[%clk 0:00:29]}  Bg7 {[%clk 0:00:07]} 35. Qxb7 {[%clk 0:00:29]}  Raa8 {[%clk 0:00:07]} 36. Qxd5 {[%clk 0:00:27]}  Rad8 {[%clk 0:00:07]} 37. Qf3 {[%clk 0:00:25]}  Bf6 {[%clk 0:00:06]} 38. a6 {[%clk 0:00:24]}  Qg7 {[%clk 0:00:07]} 39. gxh4 {[%clk 0:00:24]}  Qc7 {[%clk 0:00:06]} 40. Kb2 {[%clk 0:00:20]}  Rb8 {[%clk 0:00:05]} 41. h5 {[%clk 0:00:20]}  Kg7 {[%clk 0:00:02]} 42. Rg1 {[%clk 0:00:19]}  Bxe5 {[%clk 0:00:02]} 43. Rxg6+ {[%clk 0:00:19]}  Kh7 {[%clk 0:00:02]} 44. fxe5 {[%clk 0:00:18]}  Rfc8 {[%clk 0:00:03]} 45. Ra3 {[%clk 0:00:17]}  Rxb4+ {[%clk 0:00:03]} 46. Kc2 {[%clk 0:00:12]}  Rxd4 {[%clk 0:00:03]} 47. Qxf5 {[%clk 0:00:11]} 1-0


[Site "https://www.chess.com"]

[Event "Titled Tuesday Blitz September 27 Early 2022"]
[White "Hristodoulou, Panagiotis"]
[Black "Zenin, Dmitry"]
[WhiteFideId "4214340"]
[BlackFideId "4127897"]
[WhiteElo "2172"]
[BlackElo "2215"]
[Result "1-0"]
[Round "08"]
[TimeControl "180+1"]
[Date "2022.09.27"]
[WhiteClock "0:00:08"]
[BlackClock "0:00:01"]

1. e4 {[%clk 0:02:59]}  e5 {[%clk 0:02:58]} 2. Nf3 {[%clk 0:02:51]}  Nc6 {[%clk 0:02:58]} 3. Bc4 {[%clk 0:02:48]}  Bc5 {[%clk 0:02:57]} 4. O-O {[%clk 0:02:47]}  Nf6 {[%clk 0:02:57]} 5. d3 {[%clk 0:02:47]}  a6 {[%clk 0:02:51]} 6. c3 {[%clk 0:02:46]}  Ba7 {[%clk 0:02:49]} 7. a4 {[%clk 0:02:45]}  O-O {[%clk 0:02:48]} 8. h3 {[%clk 0:02:41]}  d5 {[%clk 0:02:47]} 9. exd5 {[%clk 0:02:40]}  Nxd5 {[%clk 0:02:47]} 10. Re1 {[%clk 0:02:41]}  Be6 {[%clk 0:02:43]} 11. Nbd2 {[%clk 0:02:33]}  Nf4 {[%clk 0:02:21]} 12. Bxe6 {[%clk 0:02:28]}  Nxe6 {[%clk 0:02:19]} 13. Nc4 {[%clk 0:02:21]}  Nc5 {[%clk 0:01:49]} 14. Ncxe5 {[%clk 0:02:16]}  Nxe5 {[%clk 0:01:48]} 15. Nxe5 {[%clk 0:02:17]}  f6 {[%clk 0:01:43]} 16. d4 {[%clk 0:02:13]}  fxe5 {[%clk 0:01:41]} 17. dxc5 {[%clk 0:02:09]}  Qxd1 {[%clk 0:01:41]} 18. Rxd1 {[%clk 0:02:10]}  Bxc5 {[%clk 0:01:41]} 19. Be3 {[%clk 0:01:46]}  Bxe3 {[%clk 0:01:40]} 20. fxe3 {[%clk 0:01:39]}  Rad8 {[%clk 0:01:40]} 21. Rac1 {[%clk 0:01:34]}  Kf7 {[%clk 0:01:38]} 22. Kf2 {[%clk 0:01:11]}  Ke6+ {[%clk 0:01:37]} 23. Ke2 {[%clk 0:01:12]}  Rd6 {[%clk 0:00:59]} 24. e4 {[%clk 0:00:54]}  Rf4 {[%clk 0:00:57]} 25. Ke3 {[%clk 0:00:54]}  h5 {[%clk 0:00:57]} 26. Rf1 {[%clk 0:00:50]}  Rxf1 {[%clk 0:00:39]} 27. Rxf1 {[%clk 0:00:50]}  Rd8 {[%clk 0:00:38]} 28. b4 {[%clk 0:00:28]}  b6 {[%clk 0:00:37]} 29. Ke2 {[%clk 0:00:25]}  g6 {[%clk 0:00:36]} 30. g3 {[%clk 0:00:25]}  Ra8 {[%clk 0:00:32]} 31. Ke3 {[%clk 0:00:14]}  a5 {[%clk 0:00:32]} 32. b5 {[%clk 0:00:12]}  Rd8 {[%clk 0:00:32]} 33. Ke2 {[%clk 0:00:10]}  Rd6 {[%clk 0:00:29]} 34. Rf8 {[%clk 0:00:04]}  c6 {[%clk 0:00:27]} 35. Re8+ {[%clk 0:00:03]}  Kf6 {[%clk 0:00:26]} 36. Rb8 {[%clk 0:00:02]}  cxb5 {[%clk 0:00:26]} 37. axb5 {[%clk 0:00:03]}  Ke6 {[%clk 0:00:21]} 38. Ke3 {[%clk 0:00:03]}  Kd7 {[%clk 0:00:20]} 39. Rb7+ {[%clk 0:00:02]}  Ke6 {[%clk 0:00:19]} 40. Rg7 {[%clk 0:00:02]}  Kf6 {[%clk 0:00:19]} 41. Rb7 {[%clk 0:00:03]}  Ke6 {[%clk 0:00:18]} 42. c4 {[%clk 0:00:04]}  Kf6 {[%clk 0:00:15]} 43. Ke2 {[%clk 0:00:04]}  Ke6 {[%clk 0:00:15]} 44. Ke3 {[%clk 0:00:03]}  Kf6 {[%clk 0:00:15]} 45. Ke2 {[%clk 0:00:02]}  Ke6 {[%clk 0:00:15]} 46. Rc7 {[%clk 0:00:02]}  Kf6 {[%clk 0:00:14]} 47. Ke3 {[%clk 0:00:03]}  Ke6 {[%clk 0:00:14]} 48. g4 {[%clk 0:00:03]}  hxg4 {[%clk 0:00:14]} 49. hxg4 {[%clk 0:00:04]}  Kf6 {[%clk 0:00:12]} 50. Kf3 {[%clk 0:00:05]}  Rd4 {[%clk 0:00:09]} 51. Rc6+ {[%clk 0:00:04]}  Kg5 {[%clk 0:00:08]} 52. Ke3 {[%clk 0:00:02]}  Kxg4 {[%clk 0:00:05]} 53. Rxg6+ {[%clk 0:00:02]}  Kh5 {[%clk 0:00:05]} 54. Rxb6 {[%clk 0:00:02]}  Rxc4 {[%clk 0:00:05]} 55. Ra6 {[%clk 0:00:02]}  Rc3+ {[%clk 0:00:04]} 56. Kd2 {[%clk 0:00:02]}  Rc4 {[%clk 0:00:04]} 57. b6 {[%clk 0:00:03]}  Rxe4 {[%clk 0:00:03]} 58. Rxa5 {[%clk 0:00:03]}  Rb4 {[%clk 0:00:03]} 59. Rxe5+ {[%clk 0:00:04]}  Kg6 {[%clk 0:00:03]} 60. Re6+ {[%clk 0:00:05]}  Kf7 {[%clk 0:00:03]} 61. Rh6 {[%clk 0:00:05]}  Ke7 {[%clk 0:00:03]} 62. Kc3 {[%clk 0:00:06]}  Rb1 {[%clk 0:00:03]} 63. Kc4 {[%clk 0:00:06]}  Kd7 {[%clk 0:00:03]} 64. Kc5 {[%clk 0:00:06]}  Rc1+ {[%clk 0:00:02]} 65. Kb5 {[%clk 0:00:06]}  Kc8 {[%clk 0:00:02]} 66. Rc6+ {[%clk 0:00:06]}  Rxc6 {[%clk 0:00:01]} 67. Kxc6 {[%clk 0:00:07]}  Kb8 {[%clk 0:00:01]} 68. b7 {[%clk 0:00:08]} 1-0


[Site "https://www.chess.com"]